fUST/lending_fUST_20240711
["ID","MTS","AMOUNT","RATE_DAILY","PERIOD"]
[331727700,1720704641789,-878.8,0.0003178,2]
[331727701,1720704641798,-1406.0,0.00032018,2]
[331727702,1720704641808,-169.78192977,0.000323,6]
[331727703,1720704641818,-150.0,0.00032779,2]
[331727704,1720704641828,-503.0,0.00032779,2]
[331727705,1720704641837,-657.557705,0.0003299,120]
[331727706,1720704641846,-147730.70224888,0.00033,30]
[331727707,1720704641913,-100801.69898241,0.00033,30]
[331727708,1720704641923,-5612.49349945,0.00033,4]
[331727709,1720704641932,-254.34931479,0.00033,4]
[331727710,1720704641942,-193.99065696,0.00033,4]
[331727711,1720704641952,-284.63680701,0.00033,3]
[331727712,1720704641961,-238347.3306,0.00033,30]
[331727713,1720704641971,-362432.87984016,0.00033,3]
[331727714,1720704641980,-151.0,0.00033,7]
[331727715,1720704641990,-151.0,0.00033,7]
[331727716,1720704641999,-173.70369,0.00033,2]
[331727717,1720704642009,-151.0,0.00033,7]
[331727718,1720704642019,-151.0,0.00033,7]
[331727719,1720704642032,-151.0,0.00033,7]
[331727720,1720704642041,-1773.062594,0.00033,7]
[331727721,1720704642051,-1773.062594,0.00033,7]
[331727722,1720704642061,-1773.062594,0.00033,7]
[331727723,1720704642070,-1773.062594,0.00033,7]
[331727724,1720704642080,-1773.062594,0.00033,7]
[331727725,1720704642091,-1773.062594,0.00033,7]
[331727726,1720704642101,-151.0,0.00033,7]
[331727727,1720704642111,-151.0,0.00033,7]
[331727728,1720704642121,-151.0,0.00033,7]
[331727729,1720704642131,-4200.0,0.00033172,2]
[331727730,1720704642140,-750.0,0.00033295,2]
[331727732,1720704642150,-150.69860279,0.00033484,2]
[331727734,1720704642159,-9426.70447604,0.000335,2]
[331727735,1720704642169,-1758.2985856,0.00034,120]
[331727737,1720704642178,-200.0,0.00034,120]
[331727738,1720704642188,-301.39720559,0.00034047,4]
[331727740,1720704642197,-2068.2848258,0.00034325,2]
[331727741,1720704642206,-602.79441118,0.00034619,7]
[331727742,1720704642216,-526.41917485,0.0003468,4]
[331727744,1720704642225,-206.77043786,0.00034771,4]
[331727746,1720704642235,-496.0,0.0003488,2]
[331727747,1720704642244,-2850.60585057,0.00035,4]
[331727749,1720704642254,-1000.0,0.00035,35]
[331727750,1720704642263,-1406.0,0.00035018,2]
[331727752,1720704642278,-1205.58882236,0.00035495,30]
[331727754,1720704642287,-282.18473312,0.00035581,4]
[331727755,1720704642296,-150.0,0.00035779,2]
[331727757,1720704642307,-503.0,0.00035779,2]
[331727758,1720704642317,-200.0,0.00036,120]
[331727760,1720704642327,-164.412679,0.00036425,2]
[331727762,1720704642336,-154.69833824,0.00037,4]
[331727763,1720704642347,-2068.2848258,0.00037613,2]
[331727765,1720704642356,-153.0,0.0003767,2]
[331727766,1720704642365,-153.0,0.0003767,2]
[331727767,1720704642375,-153.0,0.0003767,2]
[331727768,1720704642384,-1000.0,0.00038,38]
[331727769,1720704642393,-150.0,0.00038,120]
[331727771,1720704642402,-1406.0,0.00038018,2]
[331727773,1720704642412,-306.0,0.000385,2]
[331727775,1720704642421,-280.26259274,0.00038616,4]
[331727777,1720704642430,-153.0,0.00038629,2]
[331727779,1720704642439,-153.0,0.00038629,2]
[331727781,1720704642449,-153.0,0.00038629,2]
[331727784,1720704642459,-153.0,0.00038629,2]
[331727786,1720704642468,-153.0,0.00038629,2]
[331727788,1720704642477,-153.0,0.00038629,2]
[331727790,1720704642487,-5000.0,0.00038699,36]
[331727791,1720704642495,-2034.1344699,0.00038699,120]
[331727794,1720704642505,-747.72784252,0.00038699,2]
[331727796,1720704642514,-23601.83455001,0.00038699,30]
[331727798,1720704642524,-178.05046184,0.00038699,4]
[331727800,1720704642535,-3834.55194855,0.00038699,2]
[331727803,1720704642544,-12260.4171705,0.000387,30]
[331727807,1720704642555,-150.0,0.00038779,2]
[331727810,1720704642564,-503.0,0.00038779,2]
[331727812,1720704642574,-151.0,0.00038779,14]
[331727815,1720704642583,-1773.062594,0.00038779,14]
[331727819,1720704642594,-1773.062594,0.00038779,14]
[331727821,1720704642603,-197.1231234,0.00038903,2]
[331727822,1720704642612,-252.73072586,0.00039393,10]
[331727823,1720704642627,-750.0,0.00039394,2]
[331727824,1720704642637,-500.0,0.00039605,120]
[331727825,1720704642645,-500.0,0.00039605,120]
[331727826,1720704642654,-500.0,0.00039605,120]
[331727828,1720704642663,-500.0,0.00039605,120]
[331727830,1720704642673,-513.94,0.00039605,120]
[331727831,1720704642682,-5708.62497123,0.00039999,4]
[331727832,1720704642691,-154.6373321,0.0004,120]
[331727833,1720704642701,-8063.68250224,0.0004,30]
[331727834,1720704642710,-192.80172319,0.0004,120]
[331727835,1720704642720,-10177.99999901,0.0004,14]
[331727836,1720704642730,-150.0,0.0004,120]
[331727837,1720704642740,-59337.534192,0.0004,15]
[331727838,1720704642749,-151.0,0.0004,14]
[331727839,1720704642758,-315.90984723,0.00040408,2]
[331727840,1720704642768,-300.0,0.0004046,2]
[331727841,1720704642780,-349.34964807,0.00040531,2]
[331727842,1720704642789,-300.0,0.00040534,2]
[331727843,1720704642798,-1000.0,0.00040541,2]
[331727844,1720704642808,-1000.0,0.00040598,2]
[331727845,1720704642818,-151.0,0.000406,15]
[331727846,1720704642828,-502.68,0.00040605,3]
[331727847,1720704642837,-449.12002876,0.00040605,5]
[331727848,1720704642846,-151.0,0.00040605,14]
[331727849,1720704642856,-1773.062594,0.00040605,14]
[331727850,1720704642865,-1773.062594,0.00040605,14]
[331727851,1720704642874,-151.0,0.00040605,14]
[331727852,1720704642885,-1433961.02381899,0.00040605,30]
[331727853,1720704642897,-294016.68011271,0.00040605,30]
[331727854,1720704643050,-155.45465387,0.00023968,2]
[331727855,1720704643060,-151.0,0.00024658,2]
[331727856,1720704643070,-151.0,0.00024658,2]
[331727857,1720704643080,-151.0,0.00025204,2]
[331727858,1720704643089,-151.0,0.000255,2]
[331727859,1720704643099,-878.8,0.00032054,2]
[331727860,1720704643108,-878.8,0.00032328,2]
[331727861,1720704643118,-878.8,0.00032602,2]
[331727862,1720704643128,-878.8,0.00032876,2]
[331727863,1720704643138,-646.33946411,0.0003299,3]
[331728127,1720704737612,576.0774013,0.00016255,2]
[331728139,1720705073518,206.77043786,0.00016255,2]
[331728140,1720705092185,13931.1837906,0.0001,15]
[331728144,1720705150074,264.81433793,0.00012121,2]
[331728145,1720705151051,154.83874556,0.00012121,2]
[331728148,1720705183707,155.89961908,0.00012121,2]
[331728149,1720705192993,302.86569861,0.00012121,2]
[331728160,1720705213381,6591.71086113,0.00012121,2]
[331728165,1720705234909,306.89640825,0.00014692,2]
[331728166,1720705240152,155.04373045,0.00014692,2]
[331728167,1720705250906,222.66171746,0.00014692,2]
[331728179,1720705383985,818.08694568,0.00016255,2]
[331728183,1720705410860,208.20094769,0.00016255,2]
[331728185,1720705421175,209.31817584,0.00016255,2]
[331728187,1720705467376,6981.98564229,0.00016255,2]
[331728190,1720705479403,1633.13096022,0.00016255,2]
[331728207,1720705590194,356.62456511,0.00016255,2]
[331728209,1720705596350,5644.09207254,0.00016255,2]
[331728210,1720705605403,4711.13030053,0.00016255,2]
[331728211,1720705608975,9615.23092531,0.00016255,2]
[331728213,1720705626356,11039.06819247,0.00016255,2]
[331728220,1720705724161,3078.85157566,0.00016255,2]
[331728222,1720705733291,154.69833824,0.00016255,2]
[331728224,1720705740507,-763.345983,0.00017483,2]
[331728225,1720705740543,-114.14970145,0.00017483,2]
[331728226,1720705740593,-135.85029855,0.00017483,2]
[331728227,1720705740624,-230.10751882,0.00018146,2]
[331728228,1720705740666,-69.89248118,0.00018146,2]
[331728229,1720705740697,-300.0,0.00018146,2]
[331728230,1720705740732,-507.60320327,0.00018147,2]
[331728232,1720705765453,-300.0,0.00018146,2]
[331728233,1720705765492,-300.0,0.00018146,2]
[331728234,1720705765528,-319.91466817,0.00018147,2]
[331728235,1720705765575,-919.91466817,0.00018147,2]
[331728236,1720705765621,-306.77186773,0.00018147,2]
[331728240,1720705777154,155.57748648,0.00016255,2]
[331728241,1720705777849,8282.61798029,0.00016255,2]
[331728242,1720705786324,2126.25063044,0.00016255,2]
[331728244,1720705790546,-962.84669225,0.00018147,2]
[331728245,1720705790598,-817.22920221,0.00018147,2]
[331728284,1720705832018,-300.0,0.00018146,2]
[331728285,1720705832030,-300.0,0.00018146,2]
[331728286,1720705832043,-2703.75817979,0.00018147,2]
[331728587,1720705838072,-1518.34020742,0.00018147,2]
[331728590,1720705838087,-16843.62131099,0.00018147,2]
[331728591,1720705838100,-3000.0,0.00018386,2]
[331728592,1720705838111,-2393.14804392,0.000189,2]
[331728593,1720705838124,-1667.04274849,0.00018941,2]
[331728594,1720705838135,-250.0,0.00019041,2]
[331728595,1720705838147,-158.29964009,0.00019165,2]
[331728596,1720705838159,-164.4126945,0.00019178,2]
[331728597,1720705838171,-160.425455,0.00019359,2]
[331728598,1720705838183,-272.68030416,0.00019703,2]
[331728599,1720705838196,-280.26259274,0.00019703,2]
[331728600,1720705838206,-272.68030416,0.00019703,2]
[331728601,1720705838216,-420.0,0.00019797,2]
[331728602,1720705838227,-52150.85185038,0.000198,2]
[331728603,1720705838237,-420.0,0.00019961,2]
[331728604,1720705838247,-293.58203646,0.00020545,2]
[331728605,1720705838260,-293.58203646,0.00020545,2]
[331728606,1720705838270,-750.0,0.00021096,2]
[331728607,1720705838280,-158.685227,0.00021096,2]
[331728608,1720705838291,-620.00007872,0.0002121,2]
[331728609,1720705838301,-620.0000002,0.00021475,2]
[331728610,1720705838312,-587.0,0.00021597,2]
[331728611,1720705838324,-256.48001934,0.00021907,2]
[331728612,1720705838335,-175.42220192,0.00021907,2]
[331728613,1720705838347,-500.0,0.00021907,2]
[331728614,1720705838358,-500.0,0.00021907,2]
[331728615,1720705838370,-275.92249462,0.00021907,2]
[331728616,1720705838382,-515.24072477,0.00021907,2]
[331728617,1720705838393,-388.61148936,0.00021907,2]
[331728618,1720705838403,-127689.083535,0.00021908,3]
[331728619,1720705838413,-156.17120317,0.00021917,2]
[331728620,1720705838425,-154.69833824,0.00021917,2]
[331728621,1720705838435,-166.666666,0.00021918,2]
[331728622,1720705838448,-587.0,0.00021957,2]
[331728623,1720705838459,-620.00000394,0.00022271,2]
[331728624,1720705838472,-166.666666,0.00022431,2]
[331728625,1720705838483,-620.00000001,0.00022549,2]
[331728626,1720705838493,-154.69833824,0.00022579,2]
[331728627,1720705838506,-155.45465387,0.00022943,2]
[331728628,1720705838518,-155.45465387,0.00022943,2]
[331728629,1720705838529,-166.666666,0.00022944,2]
[331728630,1720705838540,-620.0000002,0.00023384,2]
[331728631,1720705838551,-166.666666,0.00023456,2]
[331728632,1720705838561,-168.0,0.00023561,2]
[331728633,1720705838571,-620.0,0.00023676,2]
[331728634,1720705838583,-2393.14804392,0.000239,2]
[331728635,1720705838596,-166.666666,0.00023969,2]
[331728636,1720705838606,-823.0,0.00024153,2]
[331728637,1720705838617,-166.666666,0.00024482,2]
[331728638,1720705838628,-380.0,0.00024658,2]
[331728639,1720705838638,-243.06194987,0.00024658,2]
[331728640,1720705838649,-500.0,0.00024658,2]
[331728641,1720705838660,-193.99065696,0.00025,2]
[331728642,1720705838670,-154.69833824,0.00025129,2]
[331728643,1720705838682,-2000.0,0.0002538,2]
[331728644,1720705838693,-88888.0,0.00025391,3]
[331728645,1720705838704,-500.0,0.0002549,2]
[331728646,1720705838714,-500.0,0.0002549,2]
[331728647,1720705838726,-500.0,0.0002549,2]
[331728648,1720705838882,-515.31016827,0.0002549,2]
[331728649,1720705838893,-500.0,0.0002549,2]
[331728650,1720705838903,-500.0,0.0002549,2]
[331728651,1720705838912,-500.0,0.0002549,2]
[331728652,1720705838921,-193.51341799,0.0002549,2]
[331728653,1720705838932,-500.0,0.0002549,2]
[331728654,1720705838942,-500.0,0.0002549,2]
[331728655,1720705838951,-500.0,0.0002549,2]
[331728656,1720705838961,-228.18630619,0.0002549,2]
[331728657,1720705838970,-500.0,0.0002549,2]
[331728658,1720705838980,-500.0,0.0002549,2]
[331728659,1720705838989,-500.0,0.0002549,2]
[331728660,1720705838999,-500.0,0.0002549,2]
[331728661,1720705839010,-500.0,0.0002549,2]
[331728662,1720705839019,-500.0,0.0002549,2]
[331728663,1720705839028,-527.22594263,0.0002549,2]
[331728664,1720705839038,-107203.08279093,0.00025491,3]
[331728665,1720705839051,-148175.08427907,0.00025491,3]
[331728666,1720705839060,-35275.42945786,0.00025501,5]
[331728667,1720705839069,-100000.0,0.00025501,2]
[331728668,1720705839079,-127689.083535,0.00025778,3]
[331728669,1720705839089,-362432.87984016,0.000258,3]
[331728670,1720705839098,-763.345983,0.00026225,2]
[331728671,1720705839107,-1152.0,0.00026568,2]
[331728672,1720705839117,-750.0,0.00027195,2]
[331728673,1720705839126,-390.25130878,0.00027397,7]
[331728674,1720705839135,-500.0,0.00027397,7]
[331728675,1720705839145,-732.33,0.00027397,2]
[331728676,1720705839154,-500.0,0.00027397,7]
[331728677,1720705839163,-500.0,0.00027397,7]
[331728678,1720705839173,-500.0,0.00027397,7]
[331728679,1720705839182,-530.89089341,0.00027397,7]
[331728680,1720705839191,-500.0,0.00027397,2]
[331728681,1720705839201,-500.0,0.00027397,7]
[331728682,1720705839211,-500.0,0.00027397,7]
[331728683,1720705839220,-564.02,0.00027397,7]
[331728684,1720705839229,-500.0,0.00027397,7]
[331728685,1720705839239,-500.0,0.00027397,7]
[331728686,1720705839248,-500.0,0.00027397,7]
[331728687,1720705839258,-500.0,0.00027397,7]
[331728688,1720705839268,-500.0,0.00027397,7]
[331728689,1720705839277,-500.0,0.00027397,7]
[331728690,1720705839286,-500.0,0.00027397,7]
[331728691,1720705839296,-540.5,0.00027397,7]
[331728692,1720705839305,-500.0,0.00027397,7]
[331728693,1720705839315,-500.0,0.00027397,7]
[331728694,1720705839325,-500.0,0.00027397,2]
[331728695,1720705839334,-503.58255602,0.00027397,2]
[331728696,1720705839344,-500.0,0.00027397,2]
[331728697,1720705839354,-175.44308885,0.000274,2]
[331728698,1720705839364,-150.0,0.000275,2]
[331728699,1720705839374,-732.33,0.00027671,2]
[331728700,1720705839383,-500.0,0.00027671,7]
[331728701,1720705839393,-500.0,0.00027671,7]
[331728702,1720705839402,-160.425455,0.00027938,2]
[331728703,1720705839412,-732.33,0.00027945,2]
[331728704,1720705839421,-528.81593749,0.00027945,7]
[331728705,1720705839431,-500.0,0.00027945,7]
[331728706,1720705839440,-732.33,0.00028219,2]
[331728707,1720705839450,-500.0,0.00028219,7]
[331728708,1720705839460,-732.33,0.00028493,2]
[331728709,1720705839470,-507.23839576,0.00028493,7]
[331728710,1720705839479,-732.33,0.00028767,2]
[331728711,1720705839488,-2393.14804392,0.000289,2]
[331728712,1720705839499,-732.33,0.00029041,2]
[331728713,1720705839509,-1613.0,0.00029225,2]
[331728714,1720705839518,-732.33,0.00029315,2]
[331728715,1720705839527,-158.685227,0.00029374,2]
[331728716,1720705839537,-732.33,0.00029589,2]
[331728717,1720705839546,-30000.0,0.00029803,2]
[331728718,1720705839559,-732.33,0.00029863,2]
[331728719,1720705839568,-5612.49349945,0.0003,4]
[331728720,1720705839578,-344.0,0.0003,2]
[331728721,1720705839591,-1144.72262457,0.0003,4]
[331728723,1720705839600,-732.33,0.00030136,2]
[331728724,1720705839608,-732.33,0.0003041,2]
[331728725,1720705839618,-1667.04274845,0.00030507,2]
[331728726,1720705839627,-732.33,0.00030684,2]
[331728727,1720705839636,-732.33,0.00030958,2]
[331728728,1720705839645,-732.33,0.00031232,2]
[331728729,1720705839656,-150.0,0.00031288,2]
[331728730,1720705839667,-503.0,0.00031288,2]
[331728731,1720705839677,-1406.0,0.00031288,2]
[331728732,1720705839686,-732.33,0.00031506,2]
[331728733,1720705839696,-732.33,0.0003178,2]
[331728734,1720705839705,-310.81016817,0.000319,2]
[331728735,1720705839714,-732.33,0.00032054,2]
[331728736,1720705839723,-624.0,0.00032147,2]
[331728737,1720705839732,-732.33,0.00032328,2]
[331728738,1720705839742,-732.33,0.00032602,2]
[331728739,1720705839751,-732.33,0.00032876,2]
[331728741,1720705839760,-575.64280493,0.0003299,4]
[331728743,1720705839770,-303.39160103,0.0003299,4]
[331728744,1720705839779,-1026.63423376,0.0003299,4]
[331728745,1720705839789,-9226.97887708,0.0003299,7]
[331728746,1720705839798,-254.34931479,0.0003299,4]
[331728747,1720705839807,-284.63680701,0.0003299,3]
[331728748,1720705839817,-732.33,0.0003315,2]
[331728749,1720705839826,-750.0,0.00033295,2]
[331728750,1720705839835,-814.99640696,0.00033333,2]
[331728751,1720705839845,-732.33,0.00033424,2]
[331728752,1720705839854,-150.71364408,0.00033531,2]
[331728753,1720705839863,-732.488975,0.00033698,2]
[331728754,1720705839872,-4200.0,0.00033817,2]
[331728755,1720705839882,-1758.2985856,0.00034,120]
[331728756,1720705839891,-301.42728815,0.00034095,4]
[331728757,1720705839899,-150.0,0.00034288,2]
[331728758,1720705839909,-503.0,0.00034288,2]
[331728759,1720705839918,-1406.0,0.00034288,2]
[331728760,1720705839927,-602.85457631,0.00034668,7]
[331728761,1720705839936,-200.0,0.000347,2]
[331728762,1720705839945,-2850.60585057,0.00035,4]
[331728763,1720705839955,-1205.70915261,0.00035545,30]
[331728765,1720705839964,-282.18473312,0.0003558,4]
[331728767,1720705839974,-6349.14,0.00035616,3]
[331728768,1720705839983,-12107.39,0.00035616,3]
[331728770,1720705839993,-10089.49,0.00035616,3]
[331728772,1720705840003,-8407.91,0.00035616,3]
[331728773,1720705840013,-7006.59,0.00035616,3]
[331728775,1720705840023,-265.09411912,0.00035999,2]
[331728776,1720705840032,-400.0,0.0003607,2]
[331728777,1720705840041,-160.425455,0.00036517,2]
[331728778,1720705840051,-154.69833824,0.00037,4]
[331728780,1720705840061,-150.0,0.00037288,2]
[331728781,1720705840070,-503.0,0.00037288,2]
[331728782,1720705840080,-1406.0,0.00037288,2]
[331728783,1720705840090,-158.685227,0.00037652,2]
[331728784,1720705840099,-482.57891618,0.00037807,2]
[331728785,1720705840115,-400.0,0.00037847,2]
[331728786,1720705840125,-825.41766515,0.00037899,4]
[331728787,1720705840135,-1010.16871954,0.00037999,10]
[331728788,1720705840144,-1010.16871954,0.00037999,10]
[331728789,1720705840154,-643.7802781,0.00038264,4]
[331728790,1720705840164,-471.75108286,0.00038499,4]
[331728791,1720705840173,-526.41917485,0.00038499,4]
[331728792,1720705840183,-191.13142875,0.00039177,2]
[331728793,1720705840193,-154.69833824,0.00039177,4]
[331728794,1720705840202,-332.70413773,0.00039177,4]
[331728795,1720705840212,-349.99478615,0.00039177,4]
[331728796,1720705840221,-245.57081121,0.00039177,4]
[331728797,1720705840231,-252.73072586,0.000392,10]
[331728798,1720705840241,-297.97915628,0.00039393,21]
[331728799,1720705840250,-154.69833824,0.00039393,4]
[331728800,1720705840261,-154.69833824,0.00039393,4]
[331728801,1720705840271,-750.0,0.00039394,2]
[331728802,1720705840280,-500.0,0.00039605,120]
[331728803,1720705840290,-500.0,0.00039605,120]
[331728804,1720705840300,-513.94,0.00039605,120]
[331728805,1720705840309,-500.0,0.00039605,120]
[331728806,1720705840319,-500.0,0.00039605,120]
[331728807,1720705840328,-307.9989536,0.00039994,4]
[331728808,1720705840338,-307.9989536,0.00039994,4]
[331728809,1720705840348,-418.0698153,0.00039994,4]
[331728810,1720705840357,-215.11955425,0.00039994,4]
[331728811,1720705840367,-5708.62497123,0.00039999,4]
[331728812,1720705840376,-361.02354293,0.00039999,4]
[331728813,1720705840386,-154.69833824,0.00039999,4]
[331728814,1720705840395,-192.80172319,0.0004,120]
[331728815,1720705840404,-12260.4171705,0.0004,30]
[331728816,1720705840413,-150.0,0.00040288,2]
[331728817,1720705840422,-503.0,0.00040288,2]
[331728818,1720705840431,-1406.0,0.00040288,2]
[331728819,1720705840441,-300.0,0.0004034,2]
[331728820,1720705840450,-1000.0,0.00040441,2]
[331728821,1720705840459,-315.90984723,0.00040479,2]
[331728822,1720705840469,-1000.0,0.00040501,2]
[331728823,1720705840478,-20198.34074,0.00040505,2]
[331728824,1720705840488,-300.0,0.00040564,2]
[331728825,1720705840497,-349.34964807,0.00040571,2]
[331728826,1720705840506,-151.0,0.000406,15]
[331728827,1720705840515,-173.70369,0.000406,2]
[331728828,1720705840526,-449.12002876,0.00040605,5]
[331728829,1720705840537,-153.0,0.00040821,2]
[331728830,1720705840546,-153.0,0.00040821,2]
[331728831,1720705840556,-9805.40065962,0.00041,120]
[331728832,1720705840566,-1999.999999,0.00041,3]
[331728833,1720705840576,-190.5,0.00041041,31]
[331728834,1720705840589,-151.0,0.00041095,14]
[331728835,1720705840599,-500.0,0.00041095,7]
[331728836,1720705840609,-500.0,0.00041095,7]
[331728837,1720705840619,-500.0,0.00041095,7]
[331728838,1720705840628,-500.0,0.00041095,7]
[331728839,1720705840642,-500.0,0.00041095,7]
[331728840,1720705840652,-500.0,0.00041095,7]
[331728841,1720705840664,-500.0,0.00041095,7]
[331728842,1720705840673,-500.0,0.00041095,7]
[331728843,1720705840682,-500.0,0.00041095,7]
[331728844,1720705840692,-500.0,0.00041095,7]
[331728845,1720705840701,-500.0,0.00041095,7]
[331728846,1720705840710,-512.91755788,0.00041095,7]
[331728847,1720705840720,-179.3573747,0.00041096,2]
[331728848,1720705840729,-1000000.0,0.0004144,30]
[331728849,1720705840739,-151.0,0.0004144,2]
[331728850,1720705840748,-260.567124,0.0004144,2]
[331728851,1720705840760,-151.0,0.0004144,14]
[331728852,1720705840769,-151.0,0.0004144,14]
[331728853,1720705840778,-151.0,0.0004144,14]
[331728854,1720705840787,-151.0,0.0004144,14]
[331728855,1720705840796,-1241.143816,0.0004144,14]
[331728856,1720705840806,-1241.143816,0.0004144,14]
[331728857,1720705840815,-39607.76425653,0.00042,120]
[331728858,1720705840824,-1303.78598711,0.00042,120]
[331728859,1720705840834,-500.0,0.00042,120]
[331728860,1720705840843,-50000.0,0.00042,20]
[331728861,1720705840852,-1667.04274845,0.00042072,28]
[331728862,1720705840862,-200.0,0.00042558,7]
[331728863,1720705840871,-1325.63649868,0.0004299,48]
[331728864,1720705840880,-2165.47762591,0.00043,30]
[331728865,1720705840890,-332.20380752,0.00043,30]
[331728866,1720705840899,-3964.9306254,0.00043,2]
[331728867,1720705840909,-50000.0,0.00043,22]
[331728868,1720705840918,-328.04788258,0.00043,30]
[331728869,1720705840928,-150.0,0.00043288,2]
[331728870,1720705840938,-503.0,0.00043288,2]
[331728871,1720705840947,-1406.0,0.00043288,2]
[331728872,1720705840957,-175586.6428422,0.0004344,30]
[331728873,1720705842172,-539.74424,0.00036732,4]
[331728924,1720705843315,-0.00486021,0.00036732,4]
[331728947,1720705846395,-280.26259274,0.00019703,2]
[331728948,1720705846404,-25.20740726,0.00029793,2]
[331728951,1720705846417,-1490.25999207,0.00029793,2]
[331729120,1720706683892,57259.696822,0.00016254,2]
[331729121,1720706698301,10654.52073526,0.0002525,120]
[331729167,1720707032320,-695.211136,0.00021096,2]
[331729169,1720707032332,-1313.00680443,0.00022514,2]
[331729170,1720707032347,-1686.99319557,0.00022514,2]
[331729171,1720707032358,-250.0,0.00022612,2]
[331729172,1720707032370,-341.38675677,0.00022625,2]
[331729173,1720707032384,-120.83823713,0.00022625,2]
[331729174,1720707032396,-300.0,0.0002294,2]
[331729175,1720707032407,-211.84407736,0.0002294,2]
[331729354,1720707039219,-88.15592264,0.0002294,2]
[331729355,1720707039230,-192.70674862,0.00022941,2]
[331729356,1720707039243,-19759.34401762,0.00022941,2]
[331729357,1720707039254,-166.666666,0.00023442,2]
[331729358,1720707039264,-9479.6946624,0.00023495,2]
[331729359,1720707039276,-250.0,0.00023593,2]
[331729360,1720707039287,-24900.0,0.00024037,2]
[331729361,1720707039297,-166.666666,0.00024081,2]
[331729362,1720707039308,-166.666666,0.0002472,2]
[331729363,1720707039318,-302.45563732,0.000249,2]
[331729364,1720707039329,-301.0,0.00024904,2]
[331729365,1720707039341,-1000.0,0.00025,8]
[331729366,1720707039352,-302.45563732,0.00025149,2]
[331729367,1720707039363,-420.0,0.00025234,2]
[331729368,1720707039375,-205.02961303,0.00025241,2]
[331729369,1720707039386,-287.55149974,0.0002525,2]
[331729370,1720707039410,-3773.14321747,0.0002525,2]
[331729371,1720707039422,-16252.55554367,0.0002525,2]
[331729372,1720707039432,-764.10919398,0.0002525,2]
[331729373,1720707039442,-284.26271461,0.0002525,2]
[331729374,1720707039452,-436.49865584,0.0002525,2]
[331729375,1720707039461,-225.81003448,0.0002525,2]
[331729376,1720707039472,-2391.82993865,0.0002525,2]
[331729377,1720707039481,-575.4511693,0.0002525,2]
[331729378,1720707039492,-6326.24354903,0.0002525,2]
[331729379,1720707039501,-189.30856144,0.0002525,2]
[331729380,1720707039511,-496.37878806,0.0002525,2]
[331729381,1720707039521,-154.69833824,0.0002525,2]
[331729382,1720707039532,-2000.0,0.00025281,2]
[331729383,1720707039542,-166.666666,0.00025359,2]
[331729384,1720707039553,-4054.74,0.00025361,3]
[331729385,1720707039564,-3378.95,0.00025361,3]
[331729386,1720707039575,-4865.69,0.00025371,3]
[331729387,1720707039586,-1041.26344678,0.00025371,2]
[331729388,1720707039597,-5838.82,0.00025381,3]
[331729389,1720707039609,-28228.60462155,0.00025391,3]
[331729390,1720707039623,-5712.9,0.00025391,3]
[331729401,1720707041403,-2040.8022408,0.00025391,3]
[331729443,1720707043456,-13986.27431071,0.00025391,3]
[331729444,1720707043535,-72349.82301695,0.00025391,3]
[331729445,1720707043613,-4092.83957729,0.00025391,3]
[331729485,1720707046781,-453.35,0.00025391,3]
[331729486,1720707046795,-3681.82952532,0.00025391,3]
[331729661,1720707054504,2953.87751785,0.00018899,2]
[331729670,1720707115449,42260.16159793,0.00016255,2]
[331729671,1720707133604,155.62199415,0.00016255,2]
[331729672,1720707137544,14363.21243942,0.00016255,2]
[331729673,1720707139502,287.2910995,0.00016255,2]